[Event "January 2 Early 2024"]
[Site "https://www.chess.com"]
[Date "2024.01.02"]
[Round "2"]
[White "Kambrath, Yannick"]
[Black "Lacasa Diaz, Josep Anton"]
[Result "1-0"]
[Board "175"]
[TimeControl "180+1"]
[WhiteFideId "20632525"]
[BlackFideId "2203375"]
[WhiteElo "2530"]
[BlackElo "2324"]
[WhiteTeam "FRA"]
[BlackTeam "ESP"]
[WhiteClock "0:00:12"]
[BlackClock "0:00:06"]

1. e4 {[%clk 0:02:55]}  c5 {[%clk 0:02:59]} 2. Nf3 {[%clk 0:02:53]}  d6 {[%clk 0:02:59]} 3. d4 {[%clk 0:02:52]}  cxd4 {[%clk 0:02:59]} 4. Nxd4 {[%clk 0:02:53]}  Nf6 {[%clk 0:02:59]} 5. Nc3 {[%clk 0:02:53]}  g6 {[%clk 0:03:00]} 6. Be3 {[%clk 0:02:49]}  Nc6 {[%clk 0:02:58]} 7. f3 {[%clk 0:02:48]}  Bg7 {[%clk 0:02:56]} 8. Qd2 {[%clk 0:02:49]}  O-O {[%clk 0:02:55]} 9. O-O-O {[%clk 0:02:50]}  d5 {[%clk 0:02:54]} 10. exd5 {[%clk 0:02:49]}  Nxd5 {[%clk 0:02:54]} 11. Nxc6 {[%clk 0:02:50]}  bxc6 {[%clk 0:02:54]} 12. Bd4 {[%clk 0:02:51]}  e5 {[%clk 0:02:54]} 13. Bc5 {[%clk 0:02:49]}  Re8 {[%clk 0:02:55]} 14. Ne4 {[%clk 0:02:50]}  Qc7 {[%clk 0:02:54]} 15. Bc4 {[%clk 0:02:43]}  Be6 {[%clk 0:02:50]} 16. Bb3 {[%clk 0:02:43]}  Red8 {[%clk 0:02:35]} 17. Kb1 {[%clk 0:02:33]}  Nf4 {[%clk 0:02:29]} 18. Qf2 {[%clk 0:02:31]}  Bxb3 {[%clk 0:02:19]} 19. axb3 {[%clk 0:02:30]}  f5 {[%clk 0:02:05]} 20. Nc3 {[%clk 0:02:10]}  Ne6 {[%clk 0:02:00]} 21. Be3 {[%clk 0:02:05]}  Nd4 {[%clk 0:01:47]} 22. f4 {[%clk 0:01:21]}  c5 {[%clk 0:01:46]} 23. fxe5 {[%clk 0:01:11]}  Qxe5 {[%clk 0:01:41]} 24. Bf4 {[%clk 0:01:03]}  Qf6 {[%clk 0:01:40]} 25. Rhe1 {[%clk 0:01:03]}  Nb5 {[%clk 0:00:38]} 26. Be5 {[%clk 0:00:39]}  Nxc3+ {[%clk 0:00:23]} 27. Bxc3 {[%clk 0:00:40]}  Qc6 {[%clk 0:00:20]} 28. Bxg7 {[%clk 0:00:36]}  Kxg7 {[%clk 0:00:21]} 29. Re7+ {[%clk 0:00:36]}  Kg8 {[%clk 0:00:20]} 30. Rde1 {[%clk 0:00:29]}  c4 {[%clk 0:00:16]} 31. Qh4 {[%clk 0:00:29]}  h5 {[%clk 0:00:13]} 32. R1e6 {[%clk 0:00:24]}  Rd1+ {[%clk 0:00:13]} 33. Ka2 {[%clk 0:00:19]}  cxb3+ {[%clk 0:00:13]} 34. cxb3 {[%clk 0:00:18]}  Qxg2 {[%clk 0:00:11]} 35. Qf6 {[%clk 0:00:14]}  Rc8 {[%clk 0:00:06]} 36. Qg7# {[%clk 0:00:12]} 1-0

[Event "January 2 Early 2024"]
[Site "https://www.chess.com"]
[Date "2024.01.02"]
[Round "2"]
[White "Ljukin, Sergei"]
[Black "Harriott, Tyrell"]
[Result "1/2-1/2"]
[Board "176"]
[TimeControl "180+1"]
[WhiteFideId "14102200"]
[BlackFideId "2086484"]
[WhiteElo "2527"]
[BlackElo "2322"]
[WhiteTeam "UKR"]
[BlackTeam "USA"]
[WhiteClock "0:00:13"]
[BlackClock "0:00:32"]

1. e4 {[%clk 0:03:00]}  d5 {[%clk 0:02:46]} 2. exd5 {[%clk 0:03:00]}  Nf6 {[%clk 0:02:46]} 3. d4 {[%clk 0:03:00]}  Qxd5 {[%clk 0:02:46]} 4. Nc3 {[%clk 0:02:57]}  Qd6 {[%clk 0:02:45]} 5. Nf3 {[%clk 0:02:56]}  a6 {[%clk 0:02:24]} 6. g3 {[%clk 0:02:51]}  Nc6 {[%clk 0:02:24]} 7. Bg2 {[%clk 0:02:44]}  Bg4 {[%clk 0:02:22]} 8. h3 {[%clk 0:02:29]}  Bh5 {[%clk 0:02:21]} 9. g4 {[%clk 0:02:25]}  Bg6 {[%clk 0:02:21]} 10. Be3 {[%clk 0:02:09]}  O-O-O {[%clk 0:02:15]} 11. Qe2 {[%clk 0:02:00]}  Qb4 {[%clk 0:02:13]} 12. O-O-O {[%clk 0:01:51]}  e6 {[%clk 0:02:08]} 13. Ne5 {[%clk 0:01:51]}  Nxe5 {[%clk 0:01:57]} 14. dxe5 {[%clk 0:01:51]}  Nd7 {[%clk 0:01:54]} 15. f4 {[%clk 0:01:52]}  Qa5 {[%clk 0:01:52]} 16. Qf3 {[%clk 0:01:43]}  c6 {[%clk 0:01:49]} 17. Kb1 {[%clk 0:01:35]}  Bb4 {[%clk 0:01:47]} 18. Ne4 {[%clk 0:01:19]}  Bxe4 {[%clk 0:01:44]} 19. Qxe4 {[%clk 0:01:19]}  Nc5 {[%clk 0:01:42]} 20. Qc4 {[%clk 0:01:15]}  b5 {[%clk 0:01:37]} 21. Qe2 {[%clk 0:01:12]}  Na4 {[%clk 0:01:36]} 22. Qf3 {[%clk 0:00:56]}  Rd5 {[%clk 0:01:36]} 23. Bc1 {[%clk 0:00:43]}  Rhd8 {[%clk 0:01:33]} 24. Qe2 {[%clk 0:00:42]}  Rxd1 {[%clk 0:01:30]} 25. Rxd1 {[%clk 0:00:41]}  Rxd1 {[%clk 0:01:29]} 26. Qxd1 {[%clk 0:00:42]}  Qb6 {[%clk 0:01:23]} 27. Qd3 {[%clk 0:00:36]}  g6 {[%clk 0:01:20]} 28. f5 {[%clk 0:00:34]}  Qg1 {[%clk 0:01:17]} 29. Bxc6 {[%clk 0:00:33]}  Kc7 {[%clk 0:01:14]} 30. Bf3 {[%clk 0:00:17]}  Nb6 {[%clk 0:01:07]} 31. Qe4 {[%clk 0:00:14]}  Nd5 {[%clk 0:01:03]} 32. Qd3 {[%clk 0:00:13]}  Nb6 {[%clk 0:00:57]} 33. a3 {[%clk 0:00:13]}  Bc5 {[%clk 0:00:56]} 34. Qc3 {[%clk 0:00:09]}  Nc4 {[%clk 0:00:54]} 35. b3 {[%clk 0:00:07]}  Bxa3 {[%clk 0:00:53]} 36. bxc4 {[%clk 0:00:06]}  Bxc1 {[%clk 0:00:51]} 37. cxb5+ {[%clk 0:00:05]}  Kd8 {[%clk 0:00:51]} 38. Qd3+ {[%clk 0:00:05]}  Kc8 {[%clk 0:00:50]} 39. Qc4+ {[%clk 0:00:05]}  Kd8 {[%clk 0:00:50]} 40. Qd3+ {[%clk 0:00:05]}  Kc8 {[%clk 0:00:51]} 41. Ka2 {[%clk 0:00:06]}  Bg5 {[%clk 0:00:46]} 42. Qc4+ {[%clk 0:00:05]}  Kd8 {[%clk 0:00:46]} 43. bxa6 {[%clk 0:00:06]}  Qb6 {[%clk 0:00:42]} 44. Bc6 {[%clk 0:00:04]}  Qa5+ {[%clk 0:00:42]} 45. Qa4 {[%clk 0:00:05]}  Qxa4+ {[%clk 0:00:38]} 46. Bxa4 {[%clk 0:00:04]}  Kc7 {[%clk 0:00:38]} 47. Bb3 {[%clk 0:00:04]}  exf5 {[%clk 0:00:39]} 48. Bxf7 {[%clk 0:00:04]}  fxg4 {[%clk 0:00:39]} 49. hxg4 {[%clk 0:00:04]}  Bf4 {[%clk 0:00:38]} 50. e6 {[%clk 0:00:04]}  Bd6 {[%clk 0:00:39]} 51. Be8 {[%clk 0:00:04]}  Kb6 {[%clk 0:00:37]} 52. Bb5 {[%clk 0:00:05]}  Ka5 {[%clk 0:00:34]} 53. Kb3 {[%clk 0:00:05]}  h5 {[%clk 0:00:32]} 54. gxh5 {[%clk 0:00:05]}  gxh5 {[%clk 0:00:32]} 55. Kc4 {[%clk 0:00:06]}  h4 {[%clk 0:00:30]} 56. Kd5 {[%clk 0:00:07]}  Be7 {[%clk 0:00:30]} 57. Ke5 {[%clk 0:00:07]}  h3 {[%clk 0:00:30]} 58. Kf5 {[%clk 0:00:07]}  h2 {[%clk 0:00:30]} 59. Bc6 {[%clk 0:00:08]}  Kxa6 {[%clk 0:00:30]} 60. Kg6 {[%clk 0:00:08]}  Kb6 {[%clk 0:00:30]} 61. Bh1 {[%clk 0:00:09]}  Kc5 {[%clk 0:00:29]} 62. Kf7 {[%clk 0:00:09]}  Bd6 {[%clk 0:00:29]} 63. e7 {[%clk 0:00:09]}  Bxe7 {[%clk 0:00:30]} 64. Kxe7 {[%clk 0:00:10]}  Kc4 {[%clk 0:00:30]} 65. Kf6 {[%clk 0:00:10]}  Kc3 {[%clk 0:00:30]} 66. Kg5 {[%clk 0:00:11]}  Kxc2 {[%clk 0:00:30]} 67. Kh4 {[%clk 0:00:12]}  Kd2 {[%clk 0:00:31]} 68. Kg3 {[%clk 0:00:12]}  Ke1 {[%clk 0:00:32]} 69. Kxh2 {[%clk 0:00:13]} 1/2-1/2

[Event "January 2 Early 2024"]
[Site "https://www.chess.com"]
[Date "2024.01.02"]
[Round "2"]
[White "Pogorelskikh, Sofia"]
[Black "Bodnar, Nikolay"]
[Result "0-1"]
[Board "180"]
[TimeControl "180+1"]
[WhiteFideId "44164548"]
[BlackFideId "14106469"]
[WhiteElo "2311"]
[BlackElo "2523"]
[WhiteTeam "SRB"]
[BlackTeam "UKR"]
[WhiteClock "0:00:00"]
[BlackClock "0:00:11"]

1. e4 {[%clk 0:03:00]}  c5 {[%clk 0:02:59]} 2. Nf3 {[%clk 0:02:58]}  Nc6 {[%clk 0:02:59]} 3. d4 {[%clk 0:02:35]}  cxd4 {[%clk 0:03:00]} 4. Nxd4 {[%clk 0:02:35]}  Qc7 {[%clk 0:03:00]} 5. Nc3 {[%clk 0:02:28]}  Nf6 {[%clk 0:03:00]} 6. g3 {[%clk 0:02:24]}  Nxe4 {[%clk 0:02:59]} 7. Nxe4 {[%clk 0:01:50]}  Qe5 {[%clk 0:02:58]} 8. Bg2 {[%clk 0:01:43]}  Qxd4 {[%clk 0:02:58]} 9. Qe2 {[%clk 0:01:35]}  e6 {[%clk 0:02:53]} 10. O-O {[%clk 0:01:34]}  Be7 {[%clk 0:02:52]} 11. Bf4 {[%clk 0:01:29]}  O-O {[%clk 0:02:46]} 12. c3 {[%clk 0:01:25]}  Qb6 {[%clk 0:02:44]} 13. Nd6 {[%clk 0:01:17]}  e5 {[%clk 0:02:28]} 14. Be3 {[%clk 0:01:08]}  Qc7 {[%clk 0:02:26]} 15. Nf5 {[%clk 0:00:54]}  d6 {[%clk 0:02:20]} 16. Nxe7+ {[%clk 0:00:45]}  Qxe7 {[%clk 0:02:19]} 17. Rad1 {[%clk 0:00:43]}  Be6 {[%clk 0:02:18]} 18. c4 {[%clk 0:00:40]}  f5 {[%clk 0:02:18]} 19. Bd5 {[%clk 0:00:31]}  Bxd5 {[%clk 0:02:09]} 20. cxd5 {[%clk 0:00:29]}  Nd8 {[%clk 0:01:42]} 21. f3 {[%clk 0:00:29]}  Nf7 {[%clk 0:01:37]} 22. Rc1 {[%clk 0:00:29]}  f4 {[%clk 0:01:36]} 23. Bf2 {[%clk 0:00:28]}  fxg3 {[%clk 0:01:32]} 24. hxg3 {[%clk 0:00:27]}  Nh6 {[%clk 0:01:28]} 25. Kg2 {[%clk 0:00:25]}  Nf5 {[%clk 0:01:28]} 26. Qe4 {[%clk 0:00:22]}  Qg5 {[%clk 0:01:24]} 27. Rc7 {[%clk 0:00:16]}  b6 {[%clk 0:01:16]} 28. Rfc1 {[%clk 0:00:13]}  h5 {[%clk 0:01:12]} 29. R1c4 {[%clk 0:00:12]}  Rf6 {[%clk 0:01:07]} 30. Rc8+ {[%clk 0:00:08]}  Rxc8 {[%clk 0:01:07]} 31. Rxc8+ {[%clk 0:00:09]}  Rf8 {[%clk 0:01:08]} 32. Rxf8+ {[%clk 0:00:07]}  Kxf8 {[%clk 0:01:07]} 33. Qc4 {[%clk 0:00:07]}  h4 {[%clk 0:01:03]} 34. Qc8+ {[%clk 0:00:06]}  Kf7 {[%clk 0:01:01]} 35. Qe6+ {[%clk 0:00:07]}  Kf8 {[%clk 0:01:01]} 36. Qc8+ {[%clk 0:00:07]}  Ke7 {[%clk 0:01:02]} 37. Qe6+ {[%clk 0:00:04]}  Kd8 {[%clk 0:01:02]} 38. g4 {[%clk 0:00:03]}  h3+ {[%clk 0:00:53]} 39. Kxh3 {[%clk 0:00:03]}  Qh6+ {[%clk 0:00:53]} 40. Kg2 {[%clk 0:00:03]}  Qxe6 {[%clk 0:00:53]} 41. dxe6 {[%clk 0:00:03]}  Ne7 {[%clk 0:00:45]} 42. Bh4 {[%clk 0:00:03]}  Ke8 {[%clk 0:00:45]} 43. Kf2 {[%clk 0:00:04]}  Ng6 {[%clk 0:00:45]} 44. Bg5 {[%clk 0:00:04]}  Nf8 {[%clk 0:00:45]} 45. e7 {[%clk 0:00:04]}  Ng6 {[%clk 0:00:44]} 46. Ke3 {[%clk 0:00:04]}  Nxe7 {[%clk 0:00:45]} 47. Ke4 {[%clk 0:00:04]}  Kd7 {[%clk 0:00:44]} 48. f4 {[%clk 0:00:05]}  exf4 {[%clk 0:00:43]} 49. Bxf4 {[%clk 0:00:05]}  Ke6 {[%clk 0:00:43]} 50. Be3 {[%clk 0:00:03]}  Nc6 {[%clk 0:00:43]} 51. Kd3 {[%clk 0:00:02]}  d5 {[%clk 0:00:43]} 52. Bf4 {[%clk 0:00:02]}  Ne5+ {[%clk 0:00:42]} 53. Kd4 {[%clk 0:00:02]}  Nxg4 {[%clk 0:00:42]} 54. b4 {[%clk 0:00:02]}  Nf6 {[%clk 0:00:40]} 55. a4 {[%clk 0:00:02]}  Nd7 {[%clk 0:00:36]} 56. b5 {[%clk 0:00:01]}  g6 {[%clk 0:00:33]} 57. Bg3 {[%clk 0:00:02]}  Nc5 {[%clk 0:00:32]} 58. Bb8 {[%clk 0:00:01]}  Nxa4 {[%clk 0:00:30]} 59. Bxa7 {[%clk 0:00:02]}  g5 {[%clk 0:00:29]} 60. Bb8 {[%clk 0:00:02]}  g4 {[%clk 0:00:29]} 61. Bc7 {[%clk 0:00:03]}  Kd7 {[%clk 0:00:23]} 62. Bg3 {[%clk 0:00:02]}  Ke6 {[%clk 0:00:23]} 63. Bc7 {[%clk 0:00:03]}  Nb2 {[%clk 0:00:18]} 64. Bxb6 {[%clk 0:00:03]}  g3 {[%clk 0:00:19]} 65. Bc7 {[%clk 0:00:03]}  g2 {[%clk 0:00:18]} 66. Bh2 {[%clk 0:00:03]}  Na4 {[%clk 0:00:19]} 67. Ke3 {[%clk 0:00:02]}  Kf5 {[%clk 0:00:16]} 68. Kd4 {[%clk 0:00:02]}  Nb6 {[%clk 0:00:16]} 69. Ke3 {[%clk 0:00:02]}  Ke6 {[%clk 0:00:15]} 70. Kf2 {[%clk 0:00:03]}  d4 {[%clk 0:00:15]} 71. Kxg2 {[%clk 0:00:03]}  Kd5 {[%clk 0:00:15]} 72. Bf4 {[%clk 0:00:03]}  Kc5 {[%clk 0:00:14]} 73. Kf3 {[%clk 0:00:04]}  Kxb5 {[%clk 0:00:13]} 74. Ke4 {[%clk 0:00:04]}  Kc4 {[%clk 0:00:13]} 75. Bg5 {[%clk 0:00:04]}  Nd5 {[%clk 0:00:13]} 76. Bh6 {[%clk 0:00:04]}  d3 {[%clk 0:00:13]} 77. Bg5 {[%clk 0:00:04]}  Nc3+ {[%clk 0:00:12]} 78. Kf3 {[%clk 0:00:04]}  Kb3 {[%clk 0:00:11]} 79. Ke3 {[%clk 0:00:03]}  Kc2 {[%clk 0:00:11]} 80. Kf2 {[%clk 0:00:03]}  Ne4+ {[%clk 0:00:11]} 81. Ke1 {[%clk 0:00:00]}  Nxg5 {[%clk 0:00:11]} 0-1

[Event "January 2 Early 2024"]
[Site "https://www.chess.com"]
[Date "2024.01.02"]
[Round "2"]
[White "Gajwa Ankit"]
[Black "xakevicius91"]
[Result "1-0"]
[Board "181"]
[TimeControl "180+1"]
[WhiteFideId "5077834"]
[WhiteElo "2310"]
[BlackElo "2522"]
[WhiteTeam "IND"]
[WhiteClock "0:01:16"]
[BlackClock "0:00:07"]

1. e4 {[%clk 0:02:59]}  c5 {[%clk 0:02:59]} 2. Nf3 {[%clk 0:02:58]}  a6 {[%clk 0:03:00]} 3. c4 {[%clk 0:02:58]}  Nc6 {[%clk 0:02:59]} 4. d4 {[%clk 0:02:58]}  cxd4 {[%clk 0:02:55]} 5. Nxd4 {[%clk 0:02:58]}  e5 {[%clk 0:02:55]} 6. Nc2 {[%clk 0:02:58]}  Nf6 {[%clk 0:02:55]} 7. Nc3 {[%clk 0:02:57]}  Bc5 {[%clk 0:02:54]} 8. Be2 {[%clk 0:02:57]}  O-O {[%clk 0:02:54]} 9. O-O {[%clk 0:02:57]}  d6 {[%clk 0:02:54]} 10. Be3 {[%clk 0:02:56]}  Be6 {[%clk 0:02:50]} 11. Bxc5 {[%clk 0:02:53]}  dxc5 {[%clk 0:02:51]} 12. Nd5 {[%clk 0:02:53]}  Nd4 {[%clk 0:02:48]} 13. Nxd4 {[%clk 0:02:52]}  cxd4 {[%clk 0:02:45]} 14. Bd3 {[%clk 0:02:52]}  Bxd5 {[%clk 0:02:44]} 15. cxd5 {[%clk 0:02:51]}  Qd6 {[%clk 0:02:40]} 16. Qb3 {[%clk 0:02:49]}  Nd7 {[%clk 0:02:31]} 17. Rfc1 {[%clk 0:02:48]}  Rac8 {[%clk 0:02:15]} 18. Be2 {[%clk 0:02:46]}  b5 {[%clk 0:02:07]} 19. a4 {[%clk 0:02:41]}  Nc5 {[%clk 0:02:06]} 20. Qh3 {[%clk 0:02:30]}  bxa4 {[%clk 0:01:53]} 21. Rxa4 {[%clk 0:02:29]}  Rb8 {[%clk 0:01:01]} 22. Ra5 {[%clk 0:02:11]}  Nb3 {[%clk 0:00:34]} 23. Rxa6 {[%clk 0:02:10]}  Qxa6 {[%clk 0:00:20]} 24. Bxa6 {[%clk 0:02:09]}  Nxc1 {[%clk 0:00:20]} 25. g3 {[%clk 0:01:44]}  Rb6 {[%clk 0:00:18]} 26. Qf1 {[%clk 0:01:40]}  Nb3 {[%clk 0:00:18]} 27. Bd3 {[%clk 0:01:35]}  Nc5 {[%clk 0:00:17]} 28. Bc4 {[%clk 0:01:31]}  Rxb2 {[%clk 0:00:17]} 29. Qc1 {[%clk 0:01:31]}  Rb6 {[%clk 0:00:15]} 30. d6 {[%clk 0:01:30]}  Rxd6 {[%clk 0:00:14]} 31. Bd5 {[%clk 0:01:30]}  Rc8 {[%clk 0:00:12]} 32. Kg2 {[%clk 0:01:30]}  g6 {[%clk 0:00:12]} 33. h4 {[%clk 0:01:29]}  h5 {[%clk 0:00:12]} 34. f4 {[%clk 0:01:27]}  exf4 {[%clk 0:00:11]} 35. gxf4 {[%clk 0:01:27]}  Kg7 {[%clk 0:00:11]} 36. Qb2 {[%clk 0:01:24]}  Ne6 {[%clk 0:00:07]} 37. Bxe6 {[%clk 0:01:17]}  fxe6 {[%clk 0:00:07]} 38. Qb7+ {[%clk 0:01:17]}  Kg8 {[%clk 0:00:06]} 39. Qxc8+ {[%clk 0:01:16]}  Kf7 {[%clk 0:00:06]} 40. Qc7+ {[%clk 0:01:16]}  Kf6 {[%clk 0:00:07]} 41. Qxd6 {[%clk 0:01:16]}  g5 {[%clk 0:00:07]} 42. Qf8+ {[%clk 0:01:16]}  Kg6 {[%clk 0:00:07]} 43. f5+ {[%clk 0:01:16]} 1-0

[Event "January 2 Early 2024"]
[Site "https://www.chess.com"]
[Date "2024.01.02"]
[Round "2"]
[White "Shuvalov, Evgenij"]
[Black "Zampronha, Wladimir Camilo"]
[Result "0-1"]
[Board "184"]
[TimeControl "180+1"]
[WhiteFideId "4187237"]
[BlackFideId "2103087"]
[WhiteElo "2515"]
[BlackElo "2306"]
[WhiteTeam "FID"]
[BlackTeam "BRA"]
[WhiteClock "0:00:39"]
[BlackClock "0:00:06"]

1. d4 {[%clk 0:03:00]}  Nf6 {[%clk 0:02:59]} 2. c4 {[%clk 0:03:00]}  c5 {[%clk 0:02:59]} 3. d5 {[%clk 0:02:59]}  e6 {[%clk 0:02:59]} 4. Nc3 {[%clk 0:02:56]}  exd5 {[%clk 0:03:00]} 5. cxd5 {[%clk 0:02:57]}  d6 {[%clk 0:03:00]} 6. e4 {[%clk 0:02:56]}  g6 {[%clk 0:03:01]} 7. Bf4 {[%clk 0:02:56]}  a6 {[%clk 0:03:00]} 8. Nf3 {[%clk 0:02:37]}  Bg7 {[%clk 0:02:59]} 9. e5 {[%clk 0:02:38]}  dxe5 {[%clk 0:02:44]} 10. Bxe5 {[%clk 0:02:37]}  O-O {[%clk 0:02:40]} 11. Be2 {[%clk 0:02:37]}  b5 {[%clk 0:02:37]} 12. O-O {[%clk 0:02:24]}  Bb7 {[%clk 0:02:37]} 13. d6 {[%clk 0:02:23]}  Nbd7 {[%clk 0:02:18]} 14. Bg3 {[%clk 0:02:22]}  b4 {[%clk 0:02:06]} 15. Na4 {[%clk 0:02:20]}  Bc6 {[%clk 0:02:06]} 16. Rc1 {[%clk 0:02:15]}  Qa5 {[%clk 0:02:05]} 17. b3 {[%clk 0:02:13]}  Ne4 {[%clk 0:01:55]} 18. Bh4 {[%clk 0:01:57]}  Rfe8 {[%clk 0:01:50]} 19. Be7 {[%clk 0:01:57]}  Bxa4 {[%clk 0:01:44]} 20. bxa4 {[%clk 0:01:56]}  Nc3 {[%clk 0:01:45]} 21. Qc2 {[%clk 0:01:52]}  Qxa4 {[%clk 0:01:38]} 22. Bc4 {[%clk 0:01:48]}  Qxc2 {[%clk 0:01:34]} 23. Rxc2 {[%clk 0:01:49]}  Bf8 {[%clk 0:01:15]} 24. Re1 {[%clk 0:01:47]}  Bxe7 {[%clk 0:01:11]} 25. dxe7 {[%clk 0:01:46]}  Kg7 {[%clk 0:01:06]} 26. Ng5 {[%clk 0:01:43]}  Kf6 {[%clk 0:00:33]} 27. Nxh7+ {[%clk 0:01:41]}  Kg7 {[%clk 0:00:31]} 28. Ng5 {[%clk 0:01:41]}  Kf6 {[%clk 0:00:32]} 29. Nxf7 {[%clk 0:01:27]}  Rxe7 {[%clk 0:00:31]} 30. Rxe7 {[%clk 0:01:27]}  Kxe7 {[%clk 0:00:32]} 31. f4 {[%clk 0:01:20]}  a5 {[%clk 0:00:27]} 32. Rd2 {[%clk 0:01:18]}  a4 {[%clk 0:00:21]} 33. Ne5 {[%clk 0:01:07]}  Nxe5 {[%clk 0:00:20]} 34. fxe5 {[%clk 0:01:08]}  Rb8 {[%clk 0:00:14]} 35. h4 {[%clk 0:01:01]}  b3 {[%clk 0:00:14]} 36. axb3 {[%clk 0:01:01]}  axb3 {[%clk 0:00:15]} 37. Rb2 {[%clk 0:01:01]}  Nd1 {[%clk 0:00:12]} 38. Rxb3 {[%clk 0:00:59]}  Rb4 {[%clk 0:00:09]} 39. Rxb4 {[%clk 0:00:55]}  cxb4 {[%clk 0:00:10]} 40. g4 {[%clk 0:00:53]}  Ne3 {[%clk 0:00:10]} 41. Bb3 {[%clk 0:00:49]}  Nxg4 {[%clk 0:00:11]} 42. e6 {[%clk 0:00:49]}  Nh6 {[%clk 0:00:08]} 43. Kg2 {[%clk 0:00:48]}  Nf5 {[%clk 0:00:09]} 44. Kh3 {[%clk 0:00:48]}  Nd4 {[%clk 0:00:09]} 45. Bc4 {[%clk 0:00:45]}  b3 {[%clk 0:00:09]} 46. Bd3 {[%clk 0:00:45]}  Nxe6 {[%clk 0:00:09]} 47. Bxg6 {[%clk 0:00:44]}  Nf4+ {[%clk 0:00:07]} 48. Kg4 {[%clk 0:00:45]}  Nxg6 {[%clk 0:00:08]} 49. h5 {[%clk 0:00:43]}  b2 {[%clk 0:00:08]} 50. hxg6 {[%clk 0:00:43]}  b1=Q {[%clk 0:00:08]} 51. Kg5 {[%clk 0:00:43]}  Kf8 {[%clk 0:00:07]} 52. Kf6 {[%clk 0:00:43]}  Kg8 {[%clk 0:00:07]} 53. Kg5 {[%clk 0:00:43]}  Qf1 {[%clk 0:00:08]} 54. Kh6 {[%clk 0:00:43]}  Qh3+ {[%clk 0:00:07]} 55. Kg5 {[%clk 0:00:43]}  Qg3+ {[%clk 0:00:07]} 56. Kf6 {[%clk 0:00:43]}  Kf8 {[%clk 0:00:07]} 57. Kf5 {[%clk 0:00:39]}  Kg7 {[%clk 0:00:06]} 0-1

[Event "January 2 Early 2024"]
[Site "https://www.chess.com"]
[Date "2024.01.02"]
[Round "2"]
[White "Matyunin, Maxim"]
[Black "Eggleston, Thomas A"]
[Result "1-0"]
[Board "186"]
[TimeControl "180+1"]
[WhiteFideId "34106682"]
[BlackFideId "412139"]
[WhiteElo "2515"]
[BlackElo "2303"]
[WhiteTeam "RUS"]
[BlackTeam "ENG"]
[WhiteClock "0:01:58"]
[BlackClock "0:00:21"]

1. d4 {[%clk 0:03:00]}  e6 {[%clk 0:02:59]} 2. Nf3 {[%clk 0:03:00]}  f5 {[%clk 0:02:59]} 3. c4 {[%clk 0:03:00]}  Nf6 {[%clk 0:02:58]} 4. Nc3 {[%clk 0:03:00]}  Be7 {[%clk 0:02:56]} 5. Bg5 {[%clk 0:02:59]}  Ne4 {[%clk 0:02:51]} 6. Bxe7 {[%clk 0:02:58]}  Qxe7 {[%clk 0:02:51]} 7. e3 {[%clk 0:02:58]}  Nxc3 {[%clk 0:02:48]} 8. bxc3 {[%clk 0:02:58]}  d6 {[%clk 0:02:49]} 9. Be2 {[%clk 0:02:57]}  O-O {[%clk 0:02:47]} 10. O-O {[%clk 0:02:56]}  Kh8 {[%clk 0:02:46]} 11. a4 {[%clk 0:02:51]}  e5 {[%clk 0:02:46]} 12. Nd2 {[%clk 0:02:49]}  f4 {[%clk 0:02:41]} 13. exf4 {[%clk 0:02:47]}  Rxf4 {[%clk 0:02:27]} 14. Bf3 {[%clk 0:02:44]}  c5 {[%clk 0:02:20]} 15. dxe5 {[%clk 0:02:36]}  dxe5 {[%clk 0:02:19]} 16. Re1 {[%clk 0:02:35]}  Nc6 {[%clk 0:02:15]} 17. Qe2 {[%clk 0:02:32]}  Bd7 {[%clk 0:01:52]} 18. Bxc6 {[%clk 0:02:26]}  Bxc6 {[%clk 0:01:52]} 19. Qxe5 {[%clk 0:02:24]}  Qf8 {[%clk 0:01:47]} 20. Re2 {[%clk 0:02:20]}  Re8 {[%clk 0:01:39]} 21. Qh5 {[%clk 0:02:19]}  Rd8 {[%clk 0:01:07]} 22. Rae1 {[%clk 0:02:14]}  h6 {[%clk 0:01:00]} 23. h3 {[%clk 0:02:07]}  Rf5 {[%clk 0:00:58]} 24. Qh4 {[%clk 0:02:04]}  Rg5 {[%clk 0:00:54]} 25. Ne4 {[%clk 0:02:04]}  Qf3 {[%clk 0:00:21]} 26. Qxg5 {[%clk 0:01:58]} 1-0

[Event "January 2 Early 2024"]
[Site "https://www.chess.com"]
[Date "2024.01.02"]
[Round "2"]
[White "Goncalves, Davi Sulzbacher"]
[Black "Peiris, T G M"]
[Result "1-0"]
[Board "187"]
[TimeControl "180+1"]
[WhiteFideId "2154510"]
[BlackFideId "9901310"]
[WhiteElo "2514"]
[BlackElo "2299"]
[WhiteTeam "BRA"]
[BlackTeam "SRI"]
[WhiteClock "0:00:16"]
[BlackClock "0:00:00"]

1. e4 {[%clk 0:03:00]}  e6 {[%clk 0:02:54]} 2. d4 {[%clk 0:02:58]}  d5 {[%clk 0:02:46]} 3. Nc3 {[%clk 0:02:58]}  a6 {[%clk 0:02:42]} 4. Nf3 {[%clk 0:02:42]}  Nf6 {[%clk 0:02:41]} 5. Bg5 {[%clk 0:02:38]}  Be7 {[%clk 0:02:40]} 6. e5 {[%clk 0:02:37]}  Nfd7 {[%clk 0:02:40]} 7. h4 {[%clk 0:02:30]}  h6 {[%clk 0:02:39]} 8. Be3 {[%clk 0:02:21]}  c5 {[%clk 0:02:38]} 9. Qd2 {[%clk 0:02:09]}  Nc6 {[%clk 0:02:35]} 10. O-O-O {[%clk 0:02:01]}  c4 {[%clk 0:02:31]} 11. Ne2 {[%clk 0:01:51]}  b5 {[%clk 0:02:30]} 12. Nf4 {[%clk 0:01:48]}  b4 {[%clk 0:02:28]} 13. g4 {[%clk 0:01:42]}  Qa5 {[%clk 0:02:19]} 14. Kb1 {[%clk 0:01:34]}  Qb6 {[%clk 0:02:00]} 15. Bxc4 {[%clk 0:01:29]}  dxc4 {[%clk 0:01:47]} 16. d5 {[%clk 0:01:29]}  Nc5 {[%clk 0:00:22]} 17. d6 {[%clk 0:01:01]}  c3 {[%clk 0:00:17]} 18. Qe2 {[%clk 0:00:52]}  Bd8 {[%clk 0:00:15]} 19. Qc4 {[%clk 0:00:49]}  Qb5 {[%clk 0:00:10]} 20. Qxb5 {[%clk 0:00:36]}  axb5 {[%clk 0:00:11]} 21. Bxc5 {[%clk 0:00:36]}  Bd7 {[%clk 0:00:12]} 22. b3 {[%clk 0:00:33]}  Ba5 {[%clk 0:00:09]} 23. Rhe1 {[%clk 0:00:32]}  O-O {[%clk 0:00:09]} 24. Nd4 {[%clk 0:00:31]}  Nxd4 {[%clk 0:00:09]} 25. Rxd4 {[%clk 0:00:31]}  Rfc8 {[%clk 0:00:09]} 26. Bxb4 {[%clk 0:00:31]}  Bb6 {[%clk 0:00:10]} 27. Rd3 {[%clk 0:00:29]}  Bxf2 {[%clk 0:00:10]} 28. Rh1 {[%clk 0:00:28]}  Ra7 {[%clk 0:00:05]} 29. g5 {[%clk 0:00:16]}  Rca8 {[%clk 0:00:00]} 30. a3 {[%clk 0:00:16]} 1-0